bitfinex/quotes_SOLUSD_20250809
["timestamp","ask_amount","ask_price","bid_price","bid_amount"]
[1754782345960,0.03,180.08,180.07,69.65701121]
[1754782347042,0.03,180.08,180.07,74.6580207]
[1754782347849,0.03,180.12,180.1,15.10621557]
[1754782348052,0.1,180.15,180.12,15.10621557]
[1754782348373,0.1,180.15,180.13,47.74206015]
[1754782348582,0.1,180.15,180.13,48.42206015]
[1754782349370,0.1,180.15,180.13,53.97360625]
[1754782350572,0.1,180.15,180.13,53.29360625]
[1754782351363,0.74,180.14,180.13,3.82105066]
[1754782351570,0.74,180.14,180.13,73.72206015]
[1754782352344,0.74,180.14,180.13,79.27360625]
[1754782353164,0.74,180.14,180.13,73.72206015]
[1754782354642,0.74,180.14,180.13,68.72105066]
[1754782354846,0.74,180.14,180.13,73.72206015]
[1754782355452,0.74,180.14,180.13,3.82105066]
[1754782355751,11.29224741,180.14,180.05,2.222901]
[1754782355952,11.29224741,180.14,180.06,47.72618096]
[1754782355953,5.00100949,180.11,180.06,47.72618096]
[1754782356152,0.71,180.1,180.09,5.00100949]
[1754782356382,0.71,180.1,180.09,8.84618096]
[1754782356552,0.71,180.1,180.09,3.84517147]
[1754782356752,0.71,180.12,180.09,8.84618096]
[1754782356969,0.71,180.12,180.11,31.00100949]
[1754782357277,0.71,180.12,180.11,34.84618096]
[1754782357979,0.74,180.14,180.11,34.84618096]
[1754782358146,0.03,180.14,180.13,5.00100949]
[1754782358351,0.03,180.14,180.13,8.84618096]
[1754782358761,0.74,180.14,180.13,8.84618096]
[1754782359364,0.74,180.14,180.13,8.90618096]
[1754782361855,0.74,180.14,180.13,3.90517147]
[1754782362050,0.74,180.14,180.13,8.90618096]
[1754782363475,0.03,180.14,180.13,8.90618096]
[1754782364067,0.03,180.14,180.13,8.91975469]
[1754782365078,0.74,180.14,180.13,8.91975469]
[1754782365273,0.03,180.14,180.13,8.91975469]
[1754782365451,0.03,180.14,180.13,14.47130079]
[1754782365652,0.03,180.14,180.13,15.15130079]
[1754782366453,0.03,180.14,180.13,17.37346179]
[1754782368274,0.03,180.14,180.13,32.47967736]
[1754782374873,1e-08,180.14,180.13,32.47967736]
[1754782375065,0.03,180.18,180.16,26.0]
[1754782375265,0.03,180.18,180.17,47.71975469]
[1754782375591,0.03,180.18,180.17,53.27006828]
[1754782375895,0.03,180.18,180.17,53.55814229]
[1754782377272,0.03,180.18,180.17,54.23814229]
[1754782378172,0.03,180.18,180.17,56.45968629]
[1754782378381,0.03,180.18,180.17,61.46069578]
[1754782378774,0.03,180.18,180.17,61.45707011]
[1754782380070,0.03,180.18,180.17,76.56328568]
[1754782381085,0.03,180.2,180.17,76.56328568]
[1754782381086,0.03,180.2,180.19,41.10621557]
[1754782381291,0.03,180.2,180.19,94.68011614]
[1754782381494,0.03,180.22,180.21,5.00100949]
[1754782381690,0.03,180.22,180.21,48.02420303]
[1754782381884,0.03,180.23,180.21,48.70420303]
[1754782382088,0.03,180.23,180.22,35.82420303]
[1754782382383,0.03,180.23,180.22,9.82420303]
[1754782382791,0.72,180.28,180.23,26.0]
[1754782383106,0.72,180.28,180.27,5.00100949]
[1754782383284,0.72,180.31,180.27,53.55143773]
[1754782383600,0.72,180.31,180.3,5.00100949]
[1754782383782,0.72,180.31,180.3,48.02420303]
[1754782385089,0.72,180.31,180.3,4.14319354]
[1754782385403,11.26701359,180.31,180.3,4.14319354]
[1754782386088,11.26701359,180.31,180.23,5.00100949]
[1754782386282,11.26701359,180.31,180.24,4.12144597]
[1754782386283,5.00100949,180.27,180.24,4.12144597]
[1754782386601,0.72,180.26,180.25,4.12144597]
[1754782388197,0.72,180.26,180.25,9.12245546]
[1754782388594,0.72,180.26,180.25,4.12144597]
[1754782388805,6.26754243,180.26,180.25,4.12144597]
[1754782388994,0.72,180.26,180.25,4.12144597]
[1754782389388,6.26754243,180.26,180.25,4.12144597]
[1754782389788,0.72,180.26,180.25,4.12144597]
[1754782390010,0.72,180.26,180.25,9.12245546]
[1754782390208,5.54665569,180.29,180.25,4.12144597]
[1754782390400,0.72,180.27,180.26,4.12144597]
[1754782393483,0.72,180.29,180.26,4.12144597]
[1754782393686,0.72,180.29,180.27,4.12144597]
[1754782393899,0.72,180.29,180.28,4.12144597]
[1754782395802,11.26762882,180.29,180.28,4.12144597]
[1754782396006,11.26762882,180.29,180.18,90.28]
[1754782396211,5.00100949,180.25,180.2,5.00100949]
[1754782396421,10.54888543,180.25,180.21,4.12162461]
[1754782396714,10.54888543,180.25,180.22,43.22162461]
[1754782396715,0.72,180.24,180.22,43.22162461]
[1754782396908,0.72,180.24,180.23,4.12162461]
[1754782397213,5.72100949,180.24,180.23,4.12162461]
[1754782397793,0.72,180.24,180.23,4.12162461]
[1754782397995,5.54787594,180.25,180.23,4.12162461]
[1754782398202,5.54787594,180.25,180.24,4.12162461]
[1754782398830,0.72,180.25,180.24,4.12162461]
[1754782399692,5.54758859,180.26,180.24,4.12162461]
[1754782400008,6.26758859,180.26,180.25,4.12162461]
[1754782400604,0.72,180.26,180.25,4.12162461]
[1754782400804,5.54661933,180.29,180.25,4.12162461]
[1754782401011,0.72,180.28,180.26,4.12244486]
[1754782401310,5.54661933,180.29,180.27,4.12244486]
[1754782401490,10.57739502,180.3,180.28,4.12244486]
[1754782401689,10.57739502,180.3,180.29,4.12244486]
[1754782401910,0.03,180.3,180.29,4.12244486]
[1754782402292,0.75,180.3,180.29,4.12244486]
[1754782402490,6.2963117,180.3,180.29,4.12244486]
[1754782402794,0.75,180.3,180.29,4.12244486]
[1754782403824,0.03,180.3,180.29,4.12244486]
[1754782404320,0.03,180.3,180.29,4.12172404]
[1754782406805,0.03,180.3,180.29,9.80273353]
[1754782407219,0.03,180.3,180.29,4.12172404]
[1754782407410,0.03,180.3,180.29,4.1247051]
[1754782407716,0.03,180.3,180.29,9.12571459]
[1754782408093,0.03,180.3,180.29,4.1247051]
[1754782409305,5.70100949,180.3,180.29,4.1247051]
[1754782409508,0.7,180.3,180.29,4.1247051]
[1754782409816,5.70100949,180.3,180.29,4.1247051]
[1754782410802,11.24732119,180.3,180.29,4.1247051]
[1754782412132,40.21931601,180.3,180.22,0.06]
[1754782412428,5.00100949,180.26,180.23,4.13200695]
[1754782412723,5.00100949,180.25,180.24,4.13200695]
[1754782412927,11.2185948,180.26,180.24,4.13200695]
[1754782413220,5.00100949,180.25,180.22,0.06]
[1754782413400,5.00100949,180.25,180.23,4.13354773]
[1754782413717,5.00100949,180.25,180.24,4.13354773]
[1754782413718,5.67100949,180.25,180.24,4.13354773]
[1754782415022,11.21885969,180.25,180.24,4.13354773]
[1754782417525,21.32406577,180.25,180.24,4.13354773]
[1754782417720,26.32507526,180.25,180.24,4.13354773]
[1754782418223,6.40612715,180.25,180.24,4.13354773]
[1754782418408,11.21885969,180.25,180.24,4.13354773]
[1754782420214,11.40713664,180.25,180.24,4.13354773]
[1754782421018,26.51335221,180.25,180.24,4.13354773]
[1754782421426,30.04590733,180.25,180.22,0.06]
[1754782421612,0.67,180.24,180.23,4.14244929]
[1754782421927,5.67100949,180.24,180.23,4.14244929]
[1754782422310,11.2191675,180.24,180.23,4.14244929]
[1754782422509,26.32538307,180.24,180.23,4.14244929]
[1754782422710,15.10621557,180.23,180.22,0.06]
[1754782422908,24.49802354,180.23,180.22,0.06]
[1754782423129,20.96552605,180.23,180.22,0.06]
[1754782423308,20.77722506,180.23,180.22,0.06]
[1754782424135,26.3256909,180.23,180.22,0.06]
[1754782424533,65.5056909,180.23,180.22,0.06]
[1754782427135,26.3256909,180.23,180.22,0.06]
[1754782427332,65.4856909,180.23,180.22,0.06]
[1754782429614,65.67400549,180.23,180.22,0.06]
[1754782429820,65.00400549,180.23,180.22,0.06]
[1754782430018,64.8156909,180.23,180.22,0.06]
[1754782432734,64.7956909,180.23,180.22,0.06]
[1754782432937,65.4656909,180.23,180.22,0.06]
[1754782433328,59.79468141,180.23,180.22,0.06]
[1754782433543,64.7956909,180.23,180.22,0.06]
[1754782434040,65.4656909,180.23,180.22,0.06]
[1754782436450,64.7956909,180.23,180.22,0.06]
[1754782436636,65.4656909,180.23,180.22,0.06]
[1754782439123,60.46468141,180.23,180.22,0.06]
[1754782439348,65.4656909,180.23,180.22,0.06]
[1754782439531,65.5056909,180.23,180.22,0.06]
[1754782440324,65.5056909,180.23,180.18,0.06]
[1754782440325,15.10621557,180.2,180.18,0.06]
[1754782440523,59.24722506,180.19,180.18,0.06]
[1754782440748,59.43557416,180.19,180.18,0.06]
[1754782440924,60.14557416,180.19,180.18,0.06]
[1754782441124,65.6952717,180.19,180.18,0.06]
[1754782442633,49.87905613,180.19,180.18,0.78]
[1754782442936,0.1883491,180.19,180.18,0.78]
[1754782443146,39.4083491,180.19,180.18,4.9129855]
[1754782443657,49.95905613,180.19,180.18,4.9129855]
[1754782444256,44.40935859,180.19,180.18,4.9129855]
[1754782444563,49.95905613,180.19,180.18,4.9129855]
[1754782445031,49.77070703,180.19,180.18,4.9129855]
[1754782446235,44.22100949,180.19,180.18,4.9129855]
[1754782449161,39.22,180.19,180.18,4.9129855]
[1754782449740,44.18100949,180.19,180.18,4.9129855]
[1754782450953,39.18,180.19,180.18,4.9129855]
[1754782451532,44.18100949,180.19,180.18,4.9129855]
[1754782452358,39.18,180.19,180.18,4.9129855]
[1754782452536,44.18100949,180.19,180.18,4.9129855]
[1754782455742,39.18,180.19,180.18,4.9129855]
[1754782456063,44.18100949,180.19,180.18,4.9129855]
[1754782456561,39.18,180.19,180.18,4.9129855]
[1754782458448,44.18100949,180.19,180.18,4.1929855]
[1754782459365,39.18,180.19,180.18,4.9129855]
[1754782461653,15.13621557,180.23,180.18,15.46392]
[1754782461654,5.03100949,180.23,180.18,15.46392]
[1754782461871,39.14,180.22,180.19,4.8529855]
[1754782462064,39.14,180.22,180.2,4.8529855]
[1754782462248,39.14,180.22,180.21,4.1329855]
[1754782462945,44.14100949,180.22,180.21,4.1329855]
[1754782464669,49.68978321,180.22,180.21,4.1329855]
[1754782465171,39.14,180.22,180.21,4.1329855]
[1754782465358,44.14100949,180.22,180.21,4.1329855]
[1754782466174,44.14100949,180.22,180.21,4.8529855]
[1754782466175,39.14,180.22,180.21,4.8529855]
[1754782466349,0.03,180.23,180.21,9.85399499]
[1754782466550,0.03,180.23,180.22,9.13399499]
[1754782466853,0.03,180.23,180.22,9.85399499]
[1754782467243,0.03,180.23,180.22,4.8529855]
[1754782468276,0.03,180.23,180.22,0.72]
[1754782468460,0.03,180.23,180.22,4.87429197]
[1754782471761,0.03,180.23,180.22,9.87530146]
[1754782471958,0.03,180.23,180.22,4.87429197]
[1754782472558,0.03,180.23,180.22,9.87530146]
[1754782472784,0.03,180.23,180.22,15.42407518]
[1754782472959,0.03,180.23,180.22,9.87530146]
[1754782473776,0.03,180.23,180.22,4.87429197]
[1754782473986,0.03,180.23,180.22,4.15429197]
[1754782474562,5.74100949,180.23,180.22,4.15429197]
[1754782475788,11.28947533,180.23,180.22,4.15429197]
[1754782476688,6.28846584,180.23,180.22,4.15429197]
[1754782476874,11.28947533,180.23,180.22,4.15429197]
[1754782477476,0.03,180.23,180.22,4.15429197]
[1754782477675,0.03,180.23,180.22,4.84429197]
[1754782478270,0.03,180.23,180.22,9.84530146]
[1754782479294,0.03,180.23,180.22,4.84429197]
[1754782479680,0.03,180.23,180.22,4.15429197]
[1754782481005,0.03,180.23,180.22,4.84429197]
[1754782481674,0.03,180.23,180.22,4.15429197]
[1754782483499,0.74,180.23,180.22,4.15429197]
[1754782484000,5.74100949,180.23,180.22,4.15429197]
[1754782484203,44.94100949,180.23,180.22,4.15429197]
[1754782484385,39.94,180.23,180.22,4.15429197]
[1754782484585,44.94100949,180.23,180.22,4.15429197]
[1754782484783,50.48947533,180.23,180.22,4.15429197]
[1754782485170,45.48846584,180.23,180.22,4.15429197]
[1754782485495,39.23,180.23,180.22,4.15429197]
[1754782485895,39.21,180.23,180.22,4.15429197]
[1754782487672,0.03,180.23,180.22,4.15429197]
[1754782488290,0.03,180.23,180.22,4.84429197]
[1754782488603,0.03,180.23,180.22,4.15429197]
[1754782488604,5.74100949,180.23,180.22,4.15429197]
[1754782489287,0.03,180.23,180.22,4.15429197]
[1754782491484,5.03100949,180.23,180.22,4.15429197]
[1754782491701,5.74100949,180.23,180.22,4.15429197]
[1754782492902,0.03,180.23,180.22,4.84429197]
[1754782493103,0.03,180.23,180.22,9.84530146]
[1754782494107,0.03,180.23,180.22,4.84429197]
[1754782496277,0.03,180.23,180.22,4.83759584]
[1754782501886,0.03,180.23,180.22,4.14759584]
[1754782502216,5.73100949,180.23,180.22,4.14759584]
[1754782504320,5.03100949,180.23,180.22,4.14759584]
[1754782505013,6.27846584,180.23,180.22,4.14759584]
[1754782505215,11.27947533,180.23,180.22,4.14759584]
[1754782506213,5.73100949,180.23,180.22,4.14759584]
[1754782506424,0.03,180.23,180.22,4.14759584]
[1754782507103,5.03100949,180.23,180.22,4.14759584]
[1754782509125,11.27947533,180.23,180.22,4.14759584]
[1754782509592,15.00248023,180.23,180.22,4.14759584]
[1754782510106,15.00248023,180.23,180.2,0.06]
[1754782510107,26.0,180.21,180.2,0.06]
[1754782510420,39.34830936,180.21,180.2,0.06]
[1754782510605,48.07004917,180.21,180.2,0.06]
[1754782510806,48.58173981,180.21,180.2,0.06]
[1754782511121,54.13082143,180.21,180.2,0.06]
[1754782511303,50.41009111,180.21,180.2,0.06]
[1754782511499,54.13017971,180.21,180.2,0.06]
[1754782513211,50.41009111,180.21,180.2,0.06]
[1754782514411,0.03,180.23,180.2,5.77100949]
[1754782514614,0.03,180.23,180.22,5.00100949]
[1754782514821,0.03,180.27,180.26,26.0]
[1754782515020,0.03,180.27,180.26,34.80752409]
[1754782515419,0.03,180.27,180.26,35.51752409]
[1754782515927,0.03,180.27,180.26,30.5165146]
[1754782516331,0.03,180.27,180.26,4.5165146]
[1754782516630,5.73100949,180.27,180.26,3.8065146]
[1754782519031,11.27824419,180.27,180.26,3.8065146]
[1754782519235,5.73100949,180.27,180.26,3.8065146]
[1754782520214,0.73,180.27,180.26,3.8065146]
[1754782520414,0.03,180.27,180.26,3.8065146]
[1754782520708,11.27824419,180.27,180.21,39.14]
[1754782520916,5.00100949,180.24,180.22,3.8045368]
[1754782521113,0.7,180.24,180.23,3.8045368]
[1754782521310,5.70100949,180.24,180.23,3.8045368]
[1754782522334,6.24815801,180.24,180.23,3.8045368]
[1754782522527,11.2491675,180.24,180.23,3.8045368]
[1754782523447,11.2491675,180.24,180.2,0.06]
[1754782523644,0.7,180.23,180.21,3.80549154]
[1754782523952,0.7,180.23,180.22,3.80549154]
[1754782524115,5.70100949,180.23,180.22,3.80549154]
[1754782524835,26.3556909,180.23,180.22,3.80549154]
[1754782525320,65.4756909,180.23,180.22,3.80549154]
[1754782525742,60.47468141,180.23,180.22,3.80549154]
[1754782525942,65.4756909,180.23,180.22,3.80549154]
[1754782526325,65.4756909,180.23,180.22,3.80498886]
[1754782526634,10.54921932,180.24,180.22,3.80498886]
[1754782526947,10.54921932,180.24,180.2,0.77]
[1754782527115,10.54921932,180.24,180.21,4.49255233]
[1754782527312,10.54921932,180.24,180.22,3.78255233]
[1754782527621,10.54921932,180.24,180.21,0.71]
[1754782527820,10.54921932,180.24,180.22,3.78243189]
[1754782528132,5.00100949,180.23,180.2,0.06]
[1754782528435,5.00100949,180.22,180.21,3.78232803]
[1754782529012,0.7,180.23,180.21,3.78232803]
[1754782529211,0.7,180.23,180.22,3.78232803]
[1754782529434,5.70100949,180.23,180.22,3.78232803]
[1754782530531,11.24947533,180.23,180.22,3.78232803]
[1754782531743,10.54947533,180.23,180.22,3.78232803]
[1754782533332,11.22947533,180.23,180.22,3.78232803]
[1754782533849,5.54820228,180.24,180.22,3.84232803]
[1754782534158,0.03,180.27,180.23,9.50243676]
[1754782534352,0.03,180.27,180.24,3.78142727]
[1754782534519,0.03,180.27,180.25,3.78142727]
[1754782534721,0.03,180.27,180.25,0.72]
[1754782535025,10.57824419,180.27,180.23,0.72]
[1754782535239,10.57824419,180.27,180.24,4.14569153]
[1754782535451,10.57824419,180.27,180.25,4.14569153]
[1754782535619,0.03,180.27,180.26,4.14569153]
[1754782535920,5.03100949,180.27,180.26,4.14569153]
[1754782536832,0.03,180.27,180.26,4.86569153]
[1754782537041,0.03,180.33,180.32,26.0]
[1754782537278,0.78,180.46,180.35,15.10621557]
[1754782537456,0.78,180.46,180.34,26.0]
[1754782537457,5.00100949,180.42,180.36,9.86670102]
[1754782537757,5.00100949,180.38,180.37,4.14569153]
[1754782537963,10.54486135,180.38,180.37,4.14569153]
[1754782538262,11.22486135,180.38,180.37,4.13946981]
[1754782539168,26.33107692,180.38,180.37,4.13946981]
[1754782541647,26.33107692,180.38,180.31,39.82]
[1754782541846,5.00100949,180.35,180.32,4.12864817]
[1754782542053,5.54508151,180.34,180.33,4.12864817]
[1754782542883,10.546091,180.34,180.33,4.12864817]
[1754782543049,11.226091,180.34,180.33,4.12864817]
[1754782543248,11.226091,180.34,180.29,0.72]
[1754782543452,5.00100949,180.32,180.3,4.12700415]
[1754782543660,5.00100949,180.32,180.31,4.12700415]
[1754782544473,10.54670602,180.32,180.31,4.12700415]
[1754782544855,11.22670602,180.32,180.31,4.12700415]
[1754782545055,5.54508151,180.34,180.29,5.00100949]
[1754782545257,5.54508151,180.34,180.3,9.84760943]
[1754782545462,10.546091,180.34,180.31,4.84659994]
[1754782545660,11.226091,180.34,180.29,5.00100949]
[1754782545873,11.226091,180.34,180.3,4.12659994]
[1754782546076,11.226091,180.34,180.31,4.12659994]
[1754782546378,11.226091,180.34,180.29,5.72100949]
[1754782546573,5.00100949,180.32,180.3,4.12601148]
[1754782546878,5.00100949,180.32,180.31,4.12601148]
[1754782547050,15.10621557,180.31,180.28,4.12631431]
[1754782547246,15.10621557,180.31,180.24,5.72100949]
[1754782547247,0.68,180.3,180.24,5.72100949]
[1754782547446,5.00100949,180.29,180.25,4.84669616]
[1754782547647,5.00100949,180.29,180.26,4.12669616]
[1754782547974,5.68100949,180.29,180.27,4.12669616]
[1754782548181,5.00100949,180.29,180.25,0.72]
[1754782548357,5.00100949,180.29,180.26,4.12699479]
[1754782548558,5.546927,180.28,180.27,4.12699479]
[1754782549855,10.54767266,180.29,180.27,4.12691783]
[1754782550167,10.54767266,180.29,180.28,4.12691783]
[1754782550367,20.10722506,180.33,180.28,9.84792732]
[1754782550570,65.39261406,180.33,180.29,4.12691783]
[1754782550768,65.39261406,180.33,180.3,4.12691783]
[1754782551077,5.68100949,180.32,180.28,0.72]
[1754782551267,5.68100949,180.32,180.29,4.12630015]
[1754782551488,5.68100949,180.32,180.3,4.12630015]
[1754782551771,5.00100949,180.31,180.28,0.72]
[1754782551958,5.00100949,180.31,180.29,4.12637117]
[1754782552160,10.54701359,180.31,180.3,4.12637117]
[1754782552760,10.54701359,180.31,180.3,4.12618839]
[1754782553276,11.22701359,180.31,180.26,5.72100949]
[1754782553466,11.22735745,180.3,180.27,4.1262206]
[1754782553666,11.22735745,180.3,180.28,4.1262206]
[1754782553875,11.22735745,180.3,180.29,4.1262206]
[1754782555178,10.54735745,180.3,180.29,4.1262206]
[1754782556074,5.00100949,180.3,180.29,4.1262206]
[1754782556269,5.5460759,180.31,180.29,4.1262206]
[1754782556270,10.54708539,180.31,180.29,4.1262206]
[1754782556579,10.54708539,180.31,180.3,4.1262206]
[1754782556978,11.22708539,180.31,180.3,4.1262206]
[1754782558683,5.54567739,180.33,180.3,4.8462206]
[1754782558890,44.54567739,180.33,180.31,4.1262206]
[1754782559183,49.54668688,180.33,180.32,4.13030867]
[1754782559693,49.54668688,180.33,180.32,4.13030769]
[1754782560562,50.24668688,180.33,180.32,4.13030769]
[1754782562090,15.10621557,180.32,180.26,0.72]
[1754782562293,5.00100949,180.29,180.27,4.13006491]
[1754782562591,5.00100949,180.29,180.28,4.13006491]
[1754782563495,39.68,180.31,180.28,4.13006491]
[1754782563496,5.00100949,180.3,180.28,4.13006491]
[1754782563791,5.00100949,180.3,180.29,4.13006491]
[1754782564389,49.52727817,180.31,180.29,4.13006491]
[1754782564591,49.52727817,180.31,180.3,4.13006491]
[1754782565290,50.22727817,180.31,180.3,4.13006491]
[1754782568393,50.20727817,180.31,180.3,4.13006491]
[1754782569484,50.20727817,180.31,180.3,4.13211974]
[1754782571179,38.96,180.31,180.3,4.13211974]
[1754782571380,44.5060041,180.31,180.3,4.13211974]
[1754782571564,49.50701359,180.31,180.3,4.13211974]
[1754782572101,38.94,180.32,180.3,4.85211974]
[1754782572334,43.94100949,180.32,180.31,4.13211974]
[1754782573279,10.57618298,180.34,180.31,4.13211974]
[1754782573496,38.94,180.33,180.32,4.13211974]
[1754782573673,44.51517349,180.34,180.32,4.13211974]
[1754782573989,44.51517349,180.34,180.33,4.13211974]
[1754782574697,49.51618298,180.34,180.33,4.13211974]
[1754782575695,38.97,180.34,180.33,4.13211974]
[1754782577620,0.03,180.34,180.33,4.13211974]
[1754782578426,0.03,180.34,180.33,4.14158991]
[1754782582014,0.03,180.34,180.33,4.86158991]
[1754782582391,0.03,180.34,180.33,9.8625994]
[1754782582915,0.03,180.34,180.33,4.86158991]
[1754782584209,0.03,180.34,180.33,4.86410956]
[1754782585604,0.03,180.34,180.33,10.40949856]
[1754782585808,0.03,180.34,180.33,4.86410956]
[1754782589523,0.03,180.34,180.33,4.14410956]
[1754782591122,5.73100949,180.34,180.33,4.14410956]
[1754782591306,0.03,180.34,180.33,4.14410956]
[1754782593122,0.03,180.34,180.33,4.14077378]
[1754782593325,0.03,180.34,180.33,4.85077378]
[1754782594028,0.03,180.34,180.33,9.85178327]
[1754782594407,0.03,180.34,180.33,4.85077378]
[1754782594854,0.03,180.34,180.33,4.14077378]
[1754782597338,0.03,180.34,180.33,4.85077378]
[1754782598805,0.03,180.34,180.33,9.85178327]
[1754782599228,0.03,180.34,180.33,15.45769127]
[1754782601031,0.03,180.34,180.33,21.00308027]
[1754782601510,0.03,180.34,180.33,25.20308027]
[1754782601710,0.03,180.34,180.33,25.20252412]
[1754782602241,0.03,180.38,180.35,26.0]
[1754782602530,0.03,180.38,180.37,5.00100949]
[1754782602731,0.03,180.38,180.37,4.14021763]
[1754782602943,0.73,180.38,180.37,4.14021763]
[1754782603712,0.03,180.38,180.37,4.14021763]
[1754782605332,0.73,180.38,180.37,4.14021763]
[1754782605531,0.03,180.38,180.37,4.14021763]
[1754782605916,0.03,180.38,180.37,9.85122712]
[1754782607233,0.03,180.38,180.31,0.06]
[1754782607234,41.10621557,180.37,180.31,0.06]
[1754782607418,0.7,180.36,180.31,5.77100949]
[1754782607611,6.27385186,180.38,180.33,5.00100949]
[1754782607820,11.27486135,180.38,180.34,0.71]
[1754782608324,0.7,180.37,180.33,39.18]
[1754782608616,5.70100949,180.37,180.32,0.71]
[1754782608818,5.70100949,180.37,180.33,39.16]
[1754782608819,0.7,180.36,180.33,39.16]
[1754782609613,10.54544426,180.37,180.33,39.87]
[1754782609851,11.24544426,180.37,180.33,39.87]
[1754782610431,5.57392316,180.38,180.34,0.71]
[1754782610636,5.57392316,180.38,180.34,5.71100949]
[1754782610814,5.57392316,180.38,180.34,5.00100949]
[1754782611015,0.03,180.38,180.35,5.71100949]
[1754782611236,0.03,180.38,180.36,0.71]
[1754782611552,0.03,180.38,180.35,5.71100949]
[1754782612020,5.70100949,180.37,180.35,39.16]
[1754782612212,5.70100949,180.36,180.33,39.16]
[1754782612419,5.00100949,180.37,180.33,39.87]
[1754782612726,5.70100949,180.37,180.33,39.87]
[1754782613321,11.24526625,180.37,180.33,39.87]
[1754782613524,6.24425676,180.37,180.33,39.87]
[1754782613731,11.24526625,180.37,180.33,39.87]
[1754782613925,6.24425676,180.37,180.33,39.87]
[1754782614244,11.24526625,180.37,180.33,39.87]
[1754782615645,6.24425676,180.37,180.34,0.71]
[1754782615827,10.57489799,180.38,180.34,0.71]
[1754782616845,11.27489799,180.38,180.34,0.71]
[1754782617057,5.00100949,180.37,180.34,0.71]
[1754782617547,10.54521339,180.37,180.34,0.71]
[1754782617956,5.5442039,180.37,180.34,0.71]
[1754782618331,11.27489558,180.38,180.34,0.71]
[1754782619230,11.27489558,180.38,180.35,3.93906922]
[1754782619430,6.27388609,180.38,180.36,3.93906922]
[1754782619746,11.27489558,180.38,180.37,3.93906922]
[1754782620947,6.27388609,180.38,180.34,0.77]
[1754782621147,10.57489558,180.38,180.35,4.64033439]
[1754782621344,10.57489558,180.38,180.36,3.94033439]
[1754782621650,10.57489558,180.38,180.37,3.94033439]
[1754782622048,11.23489558,180.38,180.37,3.94033439]
[1754782623341,0.03,180.38,180.37,3.94033439]
[1754782623753,5.57385186,180.38,180.37,3.94033439]
[1754782624131,10.57486135,180.38,180.37,3.94033439]
[1754782624457,11.23486135,180.38,180.37,3.94033439]
[1754782625252,14.95363123,180.38,180.37,3.94033439]
[1754782625455,30.0598468,180.38,180.37,3.94033439]
[1754782627366,5.54446662,180.36,180.34,0.06]
[1754782627628,20.65068219,180.36,180.35,4.1503592]
[1754782627835,25.02945207,180.36,180.35,4.1503592]
[1754782628860,30.03046156,180.36,180.35,4.1503592]
[1754782629663,30.02862337,180.36,180.35,4.1503592]
[1754782630861,25.02761388,180.36,180.35,4.1503592]
[1754782631072,30.02862337,180.36,180.35,4.1503592]
[1754782633260,15.10621557,180.35,180.34,0.06]
[1754782633439,15.10621557,180.35,180.34,4.20892109]
[1754782633762,20.10722506,180.35,180.34,4.20892109]
[1754782634263,20.65098962,180.35,180.34,4.20892109]
[1754782634469,25.65199911,180.35,180.34,4.20892109]
[1754782636064,25.65199911,180.35,180.34,0.06]
[1754782636265,25.65199911,180.35,180.34,4.20850953]
[1754782637263,26.31199911,180.35,180.34,4.20850953]
[1754782638072,25.65199911,180.35,180.34,4.20850953]
[1754782638667,20.65098962,180.35,180.34,4.20850953]
[1754782638968,25.65199911,180.35,180.34,4.20850953]
[1754782642073,26.31199911,180.35,180.34,4.20850953]
[1754782643273,30.02664154,180.35,180.34,4.20850953]
[1754782643468,30.02664154,180.35,180.34,4.90850953]
[1754782643469,25.65199911,180.35,180.34,4.90850953]
[1754782643976,20.65098962,180.35,180.34,4.90850953]
[1754782644160,25.65199911,180.35,180.34,4.90850953]
[1754782644365,25.65199911,180.35,180.34,4.20850953]
[1754782647071,5.03100949,180.37,180.34,4.90850953]
[1754782647274,0.03,180.37,180.35,4.84850953]
[1754782647457,0.03,180.37,180.36,4.84850953]
[1754782649059,147.16,180.38,180.36,4.84850953]
[1754782649262,147.16,180.38,180.37,4.14850953]
[1754782649679,147.16,180.38,180.37,4.83850953]